{"text_format":"3","workbook":"xlsx","n_sheets":2,"sheets":["เริ่มต้น","งบประมาณงานแต่งงาน"],"read":"whole","date_system":"1900"}

{"sheet":"เริ่มต้น","index":0,"n_rows":7,"n_cols":2,"rows_kept":7}
[null,"เกี่ยวกับเทมเพลตนี้"]
[null,"ใช้เทมเพลตนี้เพื่อบันทึกค่าใช้จ่ายในการจัดงานแต่งงานจริงในรายการต่างๆ และติดตามแต่ละรายตามจำนวนที่กำหนดงบประมาณไว้"]
[null,"ใส่ค่าใช้จ่ายในเครื่องแต่งกาย การตกแต่ง ของขวัญ ดอกไม้ เพลง ภาพถ่าย การต้อนรับ สเตชันเนอรี การเดินทาง และสิ่งของเบ็ดเตล็ดในตารางที่เกี่ยวข้อง"]
[null,"ค่าใช้จ่ายจริงทั้งหมดโดยประมาณและค่าใช้จ่ายจริงทั้งหมดจะถูกคํานวณโดยอัตโนมัติ"]
[null,"หมายเหตุ: "]
[null,"คําแนะนําเพิ่มเติมมีให้ในคอลัมน์ A ในเวิร์กชีตงบประมาณงานแต่งงาน ข้อความนี้ได้ถูกซ่อนไว้โดยตั้งใจ เมื่อต้องการเอาข้อความออก ให้เลือกคอลัมน์ A แล้วเลือก ลบ เมื่อต้องการยกเลิกการซ่อนข้อความ ให้เลือกคอลัมน์ A แล้วเปลี่ยนสีฟอนต์"]
[null,"เมื่อต้องการเรียนรู้เพิ่มเติมเกี่ยวกับตาราง ให้กด SHIFT แล้วตามด้วย F10 ภายในตาราง แล้วเลือกตัวเลือกตาราง จากนั้นเลือกข้อความแสดงแทน"]

{"sheet":"งบประมาณงานแต่งงาน","index":1,"n_rows":93,"n_cols":4,"rows_kept":93,"merged":[[0,1,0,3],[2,1,2,3],[6,1,6,3],[15,1,15,3],[25,1,25,3],[34,1,34,3],[43,1,43,3],[50,1,50,3],[59,1,59,3],[68,1,68,3],[77,1,77,3],[85,1,85,3]]}
[null,"งบประมาณสําหรับงานแต่งงาน"]
[]
[null,"ค่าใช้จ่ายทั้งหมด "]
[null,"รายการ ","ค่าใช้จ่ายโดยประมาณ","ค่าใช้จ่ายจริง"]
[null,"ค่าใช้จ่ายทั้งหมด ",{"$f":"SUM(เครื่องแต่งกาย[[#Totals],[ค่าใช้จ่ายโดยประมาณ]],การตกแต่ง[[#Totals],[ค่าใช้จ่ายโดยประมาณ]],ของชำร่วย[[#Totals],[ค่าใช้จ่ายโดยประมาณ]],ดอกไม้[[#Totals],[ค่าใช้จ่ายโดยประมาณ]],ดนตรี[[#Totals],[ค่าใช้จ่ายโดยประมาณ]],ถ่ายภาพ[[#Totals],[ค่าใช้จ่ายโดยประมาณ]],การรับรอง[[#Totals],[ค่าใช้จ่ายโดยประมาณ]],กระดาษและการพิมพ์[[#Totals],[ค่าใช้จ่ายโดยประมาณ]],การเดินทาง[[#Totals],[ค่าใช้จ่ายโดยประมาณ]],รายจ่ายอื่นๆ[[#Totals],[ค่าใช้จ่ายโดยประมาณ]])","v":0},{"$f":"SUM(เครื่องแต่งกาย[[#Totals],[ค่าใช้จ่ายจริง]],การตกแต่ง[[#Totals],[ค่าใช้จ่ายจริง]],ของชำร่วย[[#Totals],[ค่าใช้จ่ายจริง]],ดอกไม้[[#Totals],[ค่าใช้จ่ายจริง]],ดนตรี[[#Totals],[ค่าใช้จ่ายจริง]],ถ่ายภาพ[[#Totals],[ค่าใช้จ่ายจริง]],การรับรอง[[#Totals],[ค่าใช้จ่ายจริง]],กระดาษและการพิมพ์[[#Totals],[ค่าใช้จ่ายจริง]],การเดินทาง[[#Totals],[ค่าใช้จ่ายจริง]],รายจ่ายอื่นๆ[[#Totals],[ตามที่เป็นจริง]],)","v":0}]
[]
[null,"เครื่องแต่งกาย"]
[null,"รายการ ","ค่าใช้จ่ายโดยประมาณ","ค่าใช้จ่ายจริง"]
[null,"แหวนหมั้น"]
[null,"แหวนแต่งงาน"]
[null,"ชุดเจ้าสาว"]
[null,"ผ้าคลุมหน้า/เครื่องประดับศีรษะ"]
[null,"อื่นๆ:"]
[null,"เครื่องแต่งกายทั้งหมด",{"$f":"SUBTOTAL(109,เครื่องแต่งกาย[ค่าใช้จ่ายโดยประมาณ])","v":0},{"$f":"SUBTOTAL(109,เครื่องแต่งกาย[ค่าใช้จ่ายจริง])","v":0}]
[]
[null,"ของตกแต่ง"]
[null,"รายการ ","ค่าใช้จ่ายโดยประมาณ","ค่าใช้จ่ายจริง"]
[null,"โบว์สำหรับที่นั่งในโบสถ์/ที่นั่งอื่นๆ"]
[null,"เครื่องประดับที่กลางโต๊ะ (ยกเว้นดอกไม้)"]
[null,"เทียน"]
[null,"โคมไฟ"]
[null,"บอลลูน"]
[null,"อื่นๆ:"]
[null,"การตกแต่งทั้งหมด",{"$f":"SUBTOTAL(109,การตกแต่ง[ค่าใช้จ่ายโดยประมาณ])","v":0},{"$f":"SUBTOTAL(109,การตกแต่ง[ค่าใช้จ่ายจริง])","v":0}]
[]
[null,"ของขวัญ"]
[null,"รายการ ","ค่าใช้จ่ายโดยประมาณ","ค่าใช้จ่ายจริง"]
[null,"ผู้เข้าร่วมงาน"]
[null,"คู่บ่าวสาว"]
[null,"พ่อแม่"]
[null,"ผู้อ่าน/ผู้เข้าร่วมรายอื่นๆ"]
[null,"อื่นๆ:"]
[null,"ของขวัญทั้งหมด",{"$f":"SUBTOTAL(109,ของชำร่วย[ค่าใช้จ่ายโดยประมาณ])","v":0},{"$f":"SUBTOTAL(109,ของชำร่วย[ค่าใช้จ่ายจริง])","v":0}]
[]
[null,"ดอกไม้"]
[null,"รายการ ","ค่าใช้จ่ายโดยประมาณ","ค่าใช้จ่ายจริง"]
[null,"ช่อดอกไม้"]
[null,"ดอกไม้ติดกระดุม"]
[null,"ช่อดอกไม้กลัดหน้าอกสุภาพสตรี"]
[null,"งานพิธี"]
[null,"อื่นๆ:"]
[null,"ดอกไม้ทั้งหมด",{"$f":"SUBTOTAL(109,ดอกไม้[ค่าใช้จ่ายโดยประมาณ])","v":0},{"$f":"SUBTOTAL(109,ดอกไม้[ค่าใช้จ่ายจริง])","v":0}]
[]
[null,"ดนตรี"]
[null,"รายการ ","ค่าใช้จ่ายโดยประมาณ","ค่าใช้จ่ายจริง"]
[null,"นักดนตรีสำหรับประกอบพิธี"]
[null,"วงดนตรี/ดีเจสำหรับพื้นที่ต้อนรับ"]
[null,"อื่นๆ:"]
[null,"เพลงทั้งหมด",{"$f":"SUBTOTAL(109,ดนตรี[ค่าใช้จ่ายโดยประมาณ])","v":0},{"$f":"SUBTOTAL(109,ดนตรี[ค่าใช้จ่ายจริง])","v":0}]
[]
[null,"การถ่ายภาพ"]
[null,"รายการ ","ค่าใช้จ่ายโดยประมาณ","ค่าใช้จ่ายจริง"]
[null,"ภาพถ่ายทางการ"]
[null,"ภาพถ่ายระยะไกล"]
[null,"พิมพ์พิเศษ"]
[null,"อัลบั้มรูป"]
[null,"อื่นๆ:"]
[null,"ภาพถ่ายทั้งหมด",{"$f":"SUBTOTAL(109,ถ่ายภาพ[ค่าใช้จ่ายโดยประมาณ])","v":0},{"$f":"SUBTOTAL(109,ถ่ายภาพ[ค่าใช้จ่ายจริง])","v":0}]
[]
[null,"แผนกต้อนรับ "]
[null,"รายการ ","ค่าใช้จ่ายโดยประมาณ","ค่าใช้จ่ายจริง"]
[null,"ค่าธรรมเนียมห้อง/ห้องจัดเลี้ยง"]
[null,"โต๊ะและเก้าอี้"]
[null,"อาหาร"]
[null,"ผ้าปูโต๊ะ"]
[null,"อื่นๆ:"]
[null,"การต้อนรับทั้งหมด (ไม่รวมเพลงและการตกแต่ง)",{"$f":"SUBTOTAL(109,การรับรอง[ค่าใช้จ่ายโดยประมาณ])","v":0},{"$f":"SUBTOTAL(109,การรับรอง[ค่าใช้จ่ายจริง])","v":0}]
[]
[null,"สเตชันเนอรีและการพิมพ์"]
[null,"รายการ ","ค่าใช้จ่ายโดยประมาณ","ค่าใช้จ่ายจริง"]
[null,"บัตรเชิญ"]
[null,"ประกาศ"]
[null,"การ์ดขอบคุณ"]
[null,"สเตชันเนอรีส่วนตัว"]
[null,"อื่นๆ:"]
[null,"สเตชันเนอรี/การพิมพ์ทั้งหมด",{"$f":"SUBTOTAL(109,กระดาษและการพิมพ์[ค่าใช้จ่ายโดยประมาณ])","v":0},{"$f":"SUBTOTAL(109,กระดาษและการพิมพ์[ค่าใช้จ่ายจริง])","v":0}]
[]
[null,"การเดินทาง"]
[null,"รายการ ","ค่าใช้จ่ายโดยประมาณ","ค่าใช้จ่ายจริง"]
[null,"รถลีมูซีน/รถเข็น"]
[null,"การจอดรถ"]
[null,"รถแท็กซี่"]
[null,"อื่นๆ:"]
[null,"การเดินทางทั้งหมด",{"$f":"SUBTOTAL(109,การเดินทาง[ค่าใช้จ่ายโดยประมาณ])","v":0},{"$f":"SUBTOTAL(109,การเดินทาง[ค่าใช้จ่ายจริง])","v":0}]
[]
[null,"ค่าใช้จ่ายอื่นๆ"]
[null,"รายการ ","ค่าใช้จ่ายโดยประมาณ","ตามที่เป็นจริง"]
[null,"ผู้ประกอบพิธี"]
[null,"ค่าธรรมเนียมโบสถ์/สถานที่ประกอบพิธี"]
[null,"ผู้ประสานงานแต่งงาน"]
[null,"งานเลี้ยงอาหารเย็นสำหรับครอบครัวและเพื่อนสนิท"]
[null,"อื่นๆ:"]
[null,"ค่าใช้จ่ายอื่นๆ ทั้งหมด",{"$f":"SUBTOTAL(109,รายจ่ายอื่นๆ[ค่าใช้จ่ายโดยประมาณ])","v":0},{"$f":"SUBTOTAL(109,รายจ่ายอื่นๆ[ตามที่เป็นจริง])","v":0}]